bitfinex-derivatives/quotes_BTCF0:USTF0_20250212
["timestamp","ask_amount","ask_price","bid_price","bid_amount"]
[1739323543973,0.10402581,95937.0,95936.0,0.2085031]
[1739323547269,0.008,95937.0,95936.0,0.2085031]
[1739323550282,0.008,95937.0,95931.0,0.2085148]
[1739323551283,0.005,95937.0,95931.0,0.2085148]
[1739323551483,0.003,95937.0,95931.0,0.2085148]
[1739323553484,0.2115025,95937.0,95931.0,0.2085148]
[1739323554678,0.2115025,95937.0,95928.0,0.3608]
[1739323554984,0.2115025,95937.0,95932.0,0.2085127]
[1739323555692,0.2115025,95937.0,95928.0,0.3608]
[1739323555693,0.003,95937.0,95929.0,0.2085195]
[1739323555878,0.001,95937.0,95934.0,0.2085085]
[1739323556482,0.001,95937.0,95935.0,0.2085056]
[1739323556682,0.004,95937.0,95929.0,0.2085195]
[1739323556877,0.004,95937.0,95928.0,0.3608]
[1739323557183,0.003,95937.0,95928.0,0.3608]
[1739323557382,0.002,95937.0,95928.0,0.3608]
[1739323557582,0.007,95937.0,95936.0,0.2085043]
[1739323558978,0.002,95937.0,95936.0,0.2085043]
[1739323559380,0.001,95937.0,95936.0,0.2085043]
[1739323559888,0.005,95937.0,95936.0,0.2085043]
[1739323560193,0.008,95937.0,95936.0,0.2085043]
[1739323562989,0.008,95937.0,95936.0,0.5693043]
[1739323564083,0.007,95937.0,95936.0,0.5693043]
[1739323564283,0.77128,95951.0,95950.0,0.2084739]
[1739323564693,0.78623855,95951.0,95950.0,0.2084739]
[1739323566091,0.79123855,95951.0,95950.0,0.2084739]
[1739323566294,0.79423855,95951.0,95950.0,0.2084739]
[1739323571497,0.6052302,95951.0,95950.0,0.2084739]
[1739323572189,0.6002302,95951.0,95950.0,0.2084739]
[1739323572799,0.5992302,95951.0,95950.0,0.2084739]
[1739323573898,0.5982302,95951.0,95950.0,0.2084739]
[1739323574796,0.01595855,95951.0,95950.0,0.2084739]
[1739323575098,0.001,95951.0,95950.0,0.2084739]
[1739323575501,0.01477408,95952.0,95950.0,0.2084739]
[1739323575799,0.00015633,95960.0,95959.0,0.2084543]
[1739323576305,0.01458713,95960.0,95959.0,0.2084543]
[1739323578205,0.01758713,95960.0,95959.0,0.2084543]
[1739323580206,0.01758713,95960.0,95952.0,0.2084682]
[1739323580395,0.10146,95959.0,95941.0,0.00015633]
[1739323580704,0.12527848,95951.0,95941.0,0.00015633]
[1739323580897,0.12527848,95951.0,95947.0,0.2084793]
[1739323581098,0.3608,95954.0,95947.0,0.2084793]
[1739323582100,0.3608,95954.0,95947.0,0.2104793]
[1739323582591,0.3608,95954.0,95947.0,0.2114793]
[1739323583599,0.2084709,95952.0,95947.0,0.2114793]
[1739323584100,0.2084729,95951.0,95947.0,0.2114793]
[1739323585408,0.2084748,95950.0,95947.0,0.2114793]
[1739323585609,0.208478,95949.0,95947.0,0.2104793]
[1739323585806,0.208478,95949.0,95947.0,0.2114793]
[1739323586105,0.0319,95948.0,95947.0,0.2094793]
[1739323586313,0.0319,95948.0,95947.0,0.003]
[1739323588210,0.0319,95948.0,95947.0,0.002]
[1739323588410,0.0319,95948.0,95947.0,0.003]
[1739323589008,0.10246,95948.0,95947.0,0.003]
[1739323590010,0.11705851,95948.0,95947.0,0.003]
[1739323590610,0.04649851,95948.0,95947.0,0.003]
[1739323593813,0.04649851,95948.0,95945.0,0.16247532]
[1739323594703,0.12310333,95948.0,95945.0,0.16247532]
[1739323594911,0.12310333,95948.0,95945.0,0.16347532]
[1739323595913,0.12310333,95948.0,95945.0,0.001]
[1739323596103,0.12310333,95948.0,95946.0,0.2084819]
[1739323597814,0.12310333,95948.0,95946.0,0.2104819]
[1739323598208,0.04649851,95948.0,95946.0,0.2104819]
[1739323598411,0.04649851,95948.0,95946.0,0.2114819]
[1739323600217,0.01459851,95948.0,95946.0,0.2114819]
[1739323600517,0.07056,95954.0,95950.0,0.2084735]
[1739323601511,0.08501478,95954.0,95950.0,0.2084735]
[1739323602511,0.01445478,95954.0,95952.0,0.2084686]
[1739323602708,0.12527848,95957.0,95942.0,0.0632]
[1739323602912,0.12527848,95957.0,95955.0,0.2084625]
[1739323603114,0.07056,95958.0,95955.0,0.2084625]
[1739323603808,0.08514919,95958.0,95955.0,0.2084625]
[1739323604610,0.08714919,95958.0,95955.0,0.2084625]
[1739323605014,0.002,95957.0,95955.0,0.2084625]
[1739323605214,0.002,95957.0,95944.0,0.3608]
[1739323605524,0.08914919,95958.0,95944.0,0.3608]
[1739323605725,0.08221789,95954.0,95944.0,0.3608]
[1739323606017,0.08221789,95954.0,95951.0,0.2084713]
[1739323606214,0.002,95957.0,95951.0,0.2084713]
[1739323607416,0.004,95957.0,95951.0,0.2084713]
[1739323607607,0.002,95957.0,95951.0,0.2084713]
[1739323607811,0.002,95957.0,95952.0,0.2406692]
[1739323608012,0.002,95957.0,95955.0,0.2084614]
[1739323608013,0.001,95957.0,95955.0,0.2084614]
[1739323608911,0.01458919,95958.0,95955.0,0.2084614]
[1739323609121,0.001,95957.0,95955.0,0.2084614]
[1739323609714,0.003,95957.0,95955.0,0.2084614]
[1739323610623,0.002,95957.0,95955.0,0.2084614]
[1739323610822,0.004,95957.0,95955.0,0.2084614]
[1739323614427,0.003,95957.0,95955.0,0.2084614]
[1739323616726,0.09288394,95961.0,95959.0,0.2084544]
[1739323616926,0.09288394,95961.0,95960.0,0.49646]
[1739323617131,0.2084135,95978.0,95976.0,0.2084155]
[1739323617624,0.2083993,95985.0,95981.0,0.208405]
[1739323618418,0.00015633,95987.0,95981.0,0.208405]
[1739323618620,0.01388007,95987.0,95981.0,0.208405]
[1739323618821,0.00015633,95987.0,95984.0,0.208399]
[1739323619021,0.00015633,95987.0,95985.0,0.2083967]
[1739323619823,0.00615633,95987.0,95985.0,0.2083967]
[1739323621429,0.00615633,95987.0,95985.0,0.5691967]
[1739323621731,0.02008325,95987.0,95985.0,0.5691967]
[1739323621932,0.00215633,95987.0,95985.0,0.5691967]
[1739323622523,0.00115633,95987.0,95985.0,0.5691967]
[1739323622926,0.01515073,95987.0,95985.0,0.5691967]
[1739323623132,0.00115633,95987.0,95985.0,0.5691967]
[1739323624230,0.01471422,95987.0,95985.0,0.5691967]
[1739323624434,0.00115633,95987.0,95985.0,0.5691967]
[1739323626035,0.00015633,95987.0,95985.0,0.5691967]
[1739323638341,0.00015633,95987.0,95985.0,0.2083967]
[1739323638549,0.00015633,95987.0,95986.0,0.3608]
[1739323640343,0.00115633,95987.0,95986.0,0.3608]
[1739323646138,0.00115633,95987.0,95985.0,0.2083967]
[1739323646338,0.0315,95986.0,95985.0,0.2083967]
[1739323648352,0.00015633,95987.0,95985.0,0.2083967]
[1739323648743,1.02163874,95995.0,95992.0,0.2083811]
[1739323650251,1.02463874,95995.0,95992.0,0.2083811]
[1739323650654,0.2083798,95994.0,95992.0,0.2083811]
[1739323651947,0.0642,95993.0,95992.0,0.2083811]
[1739323653351,0.0672,95993.0,95992.0,0.2083811]
[1739323653539,0.0354,95993.0,95992.0,0.2083811]
[1739323654246,0.003,95993.0,95992.0,0.2083811]
[1739323663063,0.003,95993.0,95992.0,0.4252811]
[1739323663566,0.003,95993.0,95992.0,0.4957611]
[1739323675367,0.003,95993.0,95992.0,1.2173611]
[1739323679669,0.77076,96017.0,95992.0,1.2173611]
[1739323679670,0.77076,96017.0,96002.0,0.208361]
[1739323679865,0.77076,96017.0,96002.0,0.639641]
[1739323680461,0.01284586,96013.0,96002.0,0.639641]
[1739323681378,0.01284586,96013.0,96002.0,0.640641]
[1739323681569,3e-08,96003.0,96002.0,0.640641]
[1739323682767,3e-08,96003.0,96002.0,0.6675602]
[1739323683280,0.77076,96017.0,96016.0,0.2083306]
[1739323683467,0.03,96019.0,96016.0,0.3608]
[1739323684177,0.03,96019.0,96018.0,0.2083262]
[1739323684767,0.04299123,96019.0,96018.0,0.2083262]
[1739323687076,0.04299123,96019.0,96018.0,0.2113262]
[1739323687276,0.04299123,96019.0,96018.0,0.2133262]
[1739323687672,0.04299123,96019.0,96018.0,0.2123262]
[1739323688877,0.04299123,96019.0,96018.0,0.2103262]
[1739323689175,0.04299123,96019.0,96018.0,0.2113262]
[1739323689366,0.04299123,96019.0,96018.0,0.2123262]
[1739323689977,0.04299123,96019.0,96018.0,0.2093262]
[1739323690171,0.04299123,96019.0,96018.0,0.2113262]
[1739323691977,0.04299123,96019.0,96018.0,0.2093262]
[1739323692182,0.04299123,96019.0,96018.0,0.2103262]
[1739323692674,0.04299123,96019.0,96018.0,0.2083262]
[1739323699075,0.04299123,96019.0,96018.0,0.2093262]
[1739323699984,0.04299123,96019.0,96018.0,0.2083262]
[1739323702381,0.04299123,96019.0,96018.0,0.2113262]
[1739323703283,0.04299123,96019.0,96018.0,0.2083262]
[1739323705285,0.04299123,96019.0,96018.0,0.2113262]
[1739323705985,0.04299123,96019.0,96018.0,0.2123262]
[1739323706286,0.04299123,96019.0,96018.0,0.2093262]
[1739323706487,0.04299123,96019.0,96018.0,0.2083262]
[1739323707085,0.01299123,96019.0,96018.0,0.2083262]
[1739323707283,0.00015623,96027.0,96016.0,0.36144]
[1739323707484,0.00015623,96027.0,96026.0,0.208309]
[1739323709778,0.00015623,96027.0,96026.0,0.302209]
[1739323709980,3e-08,96027.0,96026.0,0.302209]
[1739323713504,3e-08,96027.0,96026.0,0.519109]
[1739323720994,3e-08,96027.0,96026.0,0.589509]
[1739323727900,3e-08,96027.0,96026.0,2.089509]
[1739323728698,3e-08,96027.0,96026.0,0.589509]
[1739323734605,3e-08,96027.0,96026.0,1.311109]
[1739323747009,3e-08,96027.0,96026.0,0.589509]
[1739323747215,3e-08,96027.0,96026.0,1.311109]
[1739323752417,3e-08,96027.0,96026.0,1.311069]
[1739323756029,3e-08,96027.0,96026.0,1.326069]
[1739323756327,3e-08,96027.0,96026.0,1.333069]
[1739323757128,3e-08,96027.0,96026.0,1.239169]
[1739323757324,3e-08,96027.0,96026.0,1.168809]
[1739323757530,3e-08,96027.0,96026.0,1.239169]
[1739323759723,3e-08,96027.0,96026.0,1.238169]
[1739323762828,3e-08,96027.0,96026.0,1.3550964]
[1739323763024,3e-08,96027.0,96026.0,1.4254564]
[1739323764122,3e-08,96027.0,96026.0,1.2085564]
[1739323766728,3e-08,96027.0,96026.0,1.021269]
[1739323767229,0.06150003,96027.0,96026.0,1.021269]
[1739323771037,0.01333625,96040.0,96036.0,0.2082872]
[1739323771238,0.2082728,96043.0,96037.0,0.2082842]
[1739323772438,0.22083933,96043.0,96037.0,0.2082842]
[1739323772840,0.22083933,96043.0,96038.0,0.2082823]
[1739323773336,0.22083933,96043.0,96039.0,0.2082798]
[1739323773540,0.22083933,96043.0,96037.0,0.01]
[1739323773730,0.22083933,96043.0,96040.0,0.2082774]
[1739323773926,0.22083933,96043.0,96041.0,0.2082756]
[1739323774128,0.0948,96042.0,96041.0,0.2082756]
[1739323775342,0.0948,96042.0,96041.0,0.2122756]
[1739323776945,0.0948,96042.0,96041.0,0.006]
[1739323790543,0.0621,96042.0,96041.0,0.006]
[1739323791455,0.22083933,96043.0,96041.0,0.006]
[1739323793350,0.2082742,96042.0,96041.0,0.006]
[1739323799862,0.2082742,96042.0,96041.0,0.2142764]
[1739323800457,0.0154328,96047.0,96046.0,0.2082656]
[1739323800665,0.2082623,96048.0,96046.0,0.2082656]
[1739323809166,0.2082716,96044.0,96039.0,0.3608]
[1739323809470,0.3608,96041.0,96027.0,0.0614]
[1739323809655,0.3608,96030.0,96011.0,0.3608]
[1739323809856,0.2083314,96016.0,96013.0,0.0614]
[1739323811168,0.2083314,96016.0,96013.0,0.2697359]
[1739323811564,0.2083314,96016.0,96013.0,0.2787359]
[1739323811969,0.2083314,96016.0,96013.0,0.2827359]
[1739323814070,0.16418584,96021.0,96013.0,0.2827359]
[1739323814270,0.2083335,96015.0,96013.0,0.2827359]
[1739323815473,0.07032,96019.0,96013.0,0.2827359]
[1739323815972,0.07032,96019.0,96013.0,0.0744]
[1739323816175,0.07032,96019.0,96017.0,0.2083275]
[1739323817164,0.07032,96019.0,96018.0,0.0303]
[1739323818372,0.07032,96019.0,96018.0,0.0353]
[1739323819481,0.07032,96019.0,96018.0,0.0373]
[1739323821583,0.07032,96019.0,96018.0,0.007]
[1739323822683,0.07032,96019.0,96006.0,0.031]
[1739323822684,0.2083491,96008.0,96006.0,0.031]
[1739323823188,0.2083524,96006.0,96005.0,0.00015623]
[1739323823384,0.2083524,96006.0,95996.0,0.0636]
[1739323823385,0.2083697,95998.0,95996.0,0.0636]
[1739323823575,0.2083697,95998.0,95994.0,0.3608]
[1739323823777,0.2083742,95996.0,95994.0,0.3608]
[1739323823981,0.1943742,95996.0,95994.0,0.3608]
[1739323824890,0.1943742,95996.0,95985.0,0.20855213]
[1739323825074,0.1943742,95996.0,95985.0,0.00015623]
[1739323825281,0.1883742,95996.0,95986.0,0.2083941]
[1739323825886,0.1883742,95996.0,95994.0,0.007]
[1739323826085,0.1883742,95996.0,95994.0,0.022]
[1739323826392,0.1883742,95996.0,95994.0,0.015]
[1739323826780,0.2083784,95994.0,95993.0,0.00156238]
[1739323826986,0.2013784,95994.0,95993.0,0.01556238]
[1739323827586,0.2013784,95994.0,95993.0,0.00156238]
[1739323827890,0.1873784,95994.0,95993.0,0.00156238]
[1739323828083,0.2083824,95993.0,95985.0,0.00015623]
[1739323828474,0.001,95996.0,95985.0,0.00015623]
[1739323828680,0.2083841,95992.0,95985.0,0.00015623]
[1739323829195,0.2083904,95989.0,95985.0,0.00015623]
[1739323829790,0.2083957,95986.0,95985.0,0.00015623]
[1739323829984,0.07032,95986.0,95975.0,0.2084195]
[1739323830183,0.208411,95979.0,95969.0,0.208432]
[1739323830384,0.2084142,95978.0,95969.0,0.208432]
[1739323830791,0.2084249,95973.0,95969.0,0.208432]
[1739323832192,0.07032,95974.0,95968.0,0.0642]
[1739323832381,0.07032,95974.0,95972.0,0.2084261]
[1739323832581,0.001,95973.0,95972.0,0.2084261]
[1739323833388,0.07132,95974.0,95972.0,0.2084261]
[1739323834294,0.001,95973.0,95972.0,0.2084261]
[1739323834982,0.001,95973.0,95972.0,0.2124261]
[1739323835893,0.07132,95974.0,95972.0,0.2184261]
[1739323836585,0.001,95973.0,95972.0,0.2184261]
[1739323837392,0.07132,95974.0,95972.0,0.2184261]
[1739323837793,0.2797422,95974.0,95972.0,0.2184261]
[1739323838592,0.2797422,95974.0,95972.0,0.01]
[1739323838892,0.2084413,95965.0,95964.0,0.3608]
[1739323839289,0.2084468,95963.0,95961.0,0.00015623]
[1739323839488,0.2084468,95963.0,95961.0,1e-08]
[1739323839795,0.07032,95962.0,95961.0,1e-08]
[1739323840292,0.10142,95962.0,95961.0,1e-08]
[1739323840499,0.2084674,95953.0,95952.0,0.00156311]
[1739323841499,0.2084674,95953.0,95949.0,0.0631]
[1739323841890,0.2084674,95953.0,95952.0,0.001]
[1739323842693,0.2245099,95953.0,95952.0,0.001]
[1739323842898,0.2245099,95953.0,95949.0,0.0631]
[1739323843199,0.2275099,95953.0,95949.0,0.0631]
[1739323844703,0.2275099,95953.0,95952.0,0.001]
[1739323844999,0.2245099,95953.0,95952.0,0.001]
[1739323845202,0.2245099,95953.0,95949.0,0.0641]
[1739323845692,0.2245099,95953.0,95952.0,0.001]
[1739323845892,0.2275099,95953.0,95952.0,0.001]
[1739323846292,0.0190425,95953.0,95952.0,0.001]
[1739323846493,0.0160425,95953.0,95952.0,0.2094696]
[1739323846693,0.001,95953.0,95952.0,0.2094696]
[1739323846889,0.001,95953.0,95952.0,0.001]
[1739323847802,0.001,95953.0,95949.0,0.0631]
[1739323848001,0.001,95953.0,95949.0,0.2725739]
[1739323848199,0.001,95953.0,95951.0,0.2084703]
[1739323848506,0.2084509,95961.0,95954.0,0.2084651]
[1739323848706,0.208453,95960.0,95954.0,0.2084651]
[1739323850103,0.004,95960.0,95958.0,0.2084558]
[1739323852004,0.005,95960.0,95958.0,0.2084558]
[1739323852205,0.008,95960.0,95958.0,0.2084558]
[1739323852606,0.008,95960.0,95955.0,0.0308]
[1739323852912,0.008,95960.0,95954.0,0.3608]
[1739323852913,0.2084622,95956.0,95954.0,0.3608]
[1739323853410,0.07032,95955.0,95954.0,0.3608]
[1739323855606,0.07432,95955.0,95954.0,0.3608]
[1739323856610,0.07432,95955.0,95949.0,0.0631]
[1739323856908,0.2084739,95950.0,95949.0,0.0631]
[1739323857997,0.2084739,95950.0,95949.0,0.0315]
[1739323858206,0.2084768,95949.0,95945.0,0.2084834]
[1739323859014,0.3608,95954.0,95945.0,0.2084834]
[1739323859315,0.2084816,95947.0,95945.0,0.2084834]
[1739323859514,0.2084816,95947.0,95944.0,0.0311]
[1739323859515,0.2084843,95946.0,95944.0,0.0311]
[1739323859903,0.3608,95954.0,95943.0,0.00015632]
[1739323860101,0.5692869,95944.0,95943.0,0.00015632]
[1739323861117,0.2084869,95944.0,95943.0,0.00015632]
[1739323861299,0.2084869,95944.0,95943.0,0.00115632]
[1739323862212,0.2809269,95944.0,95943.0,0.00115632]
[1739323862414,0.2085156,95931.0,95929.0,0.3608]
[1739323863913,0.3608,95937.0,95932.0,0.2085118]
[1739323865015,0.2085,95938.0,95932.0,0.2085118]
[1739323865817,0.001,95937.0,95932.0,0.2085118]
[1739323867616,0.001,95937.0,95929.0,0.3608]
[1739323867806,0.001,95937.0,95935.0,0.2085054]
[1739323868113,0.00015632,95940.0,95937.0,0.2085021]
[1739323868114,0.001,95938.0,95937.0,0.2085021]
[1739323868316,0.001,95938.0,95937.0,0.5693021]
[1739323868715,0.00015632,95940.0,95939.0,0.2084978]
[1739323876320,0.07072,95959.0,95937.0,0.3608]
[1739323876521,0.07072,95959.0,95945.0,0.3608]
[1739323876724,0.07072,95959.0,95946.0,0.0975]
[1739323876917,0.08569229,95959.0,95946.0,0.0975]
[1739323877115,0.2084636,95955.0,95950.0,0.2084728]
[1739323878316,0.2154636,95955.0,95950.0,0.2084728]
[1739323878516,0.2164636,95955.0,95952.0,0.2084678]
[1739323878724,0.008,95955.0,95953.0,0.2084653]
[1739323880214,0.009,95955.0,95953.0,0.2084653]
[1739323880512,0.011,95955.0,95953.0,0.2084653]
[1739323880717,0.011,95955.0,95954.0,0.3608]
[1739323881232,0.012,95955.0,95954.0,0.3608]
[1739323882921,0.002,95955.0,95954.0,0.3608]
[1739323883117,0.01,95955.0,95954.0,0.3608]
[1739323883321,0.013,95955.0,95954.0,0.3608]
[1739323884022,0.01,95955.0,95954.0,0.3608]
[1739323884218,0.007,95955.0,95954.0,0.3608]
[1739323884524,0.009,95955.0,95954.0,0.3608]
[1739323884915,0.007,95955.0,95954.0,0.3608]
[1739323885822,0.00015632,95962.0,95954.0,0.3608]
[1739323886024,0.00015632,95962.0,95961.0,0.20845]
[1739323887630,0.00215632,95962.0,95961.0,0.20845]
[1739323888825,0.00215632,95962.0,95961.0,0.56925]
[1739323889226,0.01215632,95962.0,95961.0,0.56925]
[1739323893434,0.01215632,95962.0,95961.0,0.20845]
[1739323895129,0.01215632,95962.0,95955.0,0.2084615]
[1739323895328,0.12520799,95961.0,95957.0,0.2084585]
[1739323895530,0.01215632,95962.0,95957.0,0.2084585]
[1739323896338,0.00715632,95962.0,95957.0,0.2084585]
[1739323897635,0.00515632,95962.0,95957.0,0.2084585]
[1739323897941,0.00615632,95962.0,95957.0,0.2084585]
[1739323898233,0.21560562,95962.0,95957.0,0.2084585]
[1739323898443,0.21660562,95962.0,95957.0,0.2084585]
[1739323900031,0.2084516,95961.0,95957.0,0.2084585]
[1739323900930,0.2084532,95960.0,95957.0,0.2084585]
[1739323902333,0.2154532,95960.0,95957.0,0.2084585]
[1739323903138,0.2164532,95960.0,95957.0,0.2084585]
[1739323907446,0.04277217,95960.0,95957.0,0.2084585]
[1739323907648,0.008,95960.0,95957.0,0.2084585]
[1739323907847,0.008,95960.0,95951.0,0.3608]
[1739323908044,0.008,95960.0,95959.0,0.2084543]
[1739323909344,0.008,95960.0,95959.0,0.5692543]
[1739323909940,0.009,95960.0,95959.0,0.5692543]
[1739323910742,0.002,95960.0,95959.0,0.5692543]
[1739323910951,0.01,95960.0,95959.0,0.5692543]
[1739323913257,0.01450999,95965.0,95959.0,0.3608]
[1739323913450,0.771,95973.0,95972.0,0.208426]
[1739323914146,0.771,95973.0,95972.0,0.272726]
[1739323914644,0.777,95973.0,95972.0,0.272726]
[1739323915347,0.79194638,95973.0,95972.0,0.272726]
[1739323915855,0.80594638,95973.0,95972.0,0.272726]
[1739323916753,0.80094638,95973.0,95972.0,0.272726]
[1739323917150,0.78694638,95973.0,95972.0,0.272726]
[1739323917351,0.79294638,95973.0,95972.0,0.273726]
[1739323918058,0.79694638,95973.0,95972.0,0.273726]
[1739323918757,0.79694638,95973.0,95972.0,0.001]
[1739323919759,0.79794638,95973.0,95972.0,0.001]
[1739323920155,0.78594638,95973.0,95963.0,0.00015632]
[1739323920354,0.80094638,95973.0,95963.0,0.00015632]
[1739323920555,0.80094638,95973.0,95971.0,0.2084274]
[1739323921247,0.79694638,95973.0,95971.0,0.2084274]
[1739323921449,0.79794638,95973.0,95971.0,0.2084274]
[1739323921652,0.79794638,95973.0,95972.0,0.0319]
[1739323921957,0.79794638,95973.0,95972.0,0.3927]
[1739323922353,0.79694638,95973.0,95972.0,0.3927]
[1739323923355,0.02494638,95973.0,95972.0,0.3927]
[1739323923562,0.02794638,95973.0,95972.0,0.3927]
[1739323924060,0.02894638,95973.0,95972.0,0.3927]
[1739323924661,0.02894638,95973.0,95971.0,0.2084274]
[1739323926868,0.02794638,95973.0,95971.0,0.2084274]
[1739323928757,0.013,95973.0,95971.0,0.2084274]
[1739323929565,0.0074377,95973.0,95971.0,0.5692274]
[1739323933270,0.2158618,95973.0,95971.0,0.2084274]
[1739323933463,0.0074377,95973.0,95963.0,0.36095632]
[1739323933666,0.2084375,95967.0,95963.0,0.36095632]
[1739323935471,0.0315,95972.0,95963.0,0.36095632]
[1739323935472,0.0315,95972.0,95964.0,0.2084423]
[1739323935868,0.2084282,95971.0,95964.0,0.2084423]
[1739323936866,0.004,95967.0,95964.0,0.2084423]
[1739323937467,0.2144282,95971.0,95964.0,0.2094423]
[1739323938371,0.005,95967.0,95964.0,0.2094423]
[1739323938967,0.006,95967.0,95964.0,0.2094423]
[1739323939174,0.006,95967.0,95965.0,0.20844]
[1739323939764,0.001,95967.0,95965.0,0.20844]
[1739323940675,0.006,95967.0,95965.0,0.20944]
[1739323942171,0.2084391,95966.0,95965.0,0.001]
[1739323942764,0.2084434,95964.0,95963.0,0.00015632]
[1739323942971,0.5692434,95964.0,95963.0,0.00015632]
[1739323944469,0.5732434,95964.0,95963.0,0.00115632]
[1739323944871,0.3648,95964.0,95963.0,0.00115632]
[1739323945770,0.5732434,95964.0,95963.0,0.00115632]
[1739323948573,0.2084507,95961.0,95956.0,0.1442899]
[1739323949472,0.2084507,95961.0,95949.0,0.2084754]
[1739323949681,0.208454,95960.0,95956.0,0.001]
[1739323950080,0.208454,95960.0,95956.0,0.003]
[1739323950875,0.208456,95959.0,95956.0,0.003]
[1739323951082,0.2084576,95958.0,95956.0,0.003]
[1739323951381,0.2084576,95958.0,95956.0,0.002]
[1739323951582,0.001,95961.0,95953.0,0.2084666]
[1739323951973,0.2094512,95961.0,95953.0,0.2084666]
[1739323952282,0.2094512,95961.0,95956.0,0.002]
[1739323952784,0.2094512,95961.0,95953.0,0.2084666]
[1739323953081,0.2094512,95961.0,95953.0,0.2114666]
[1739323953284,0.2084512,95961.0,95953.0,0.2114666]
[1739323953474,0.2084512,95961.0,95956.0,0.001]
[1739323954075,0.2084512,95961.0,95953.0,0.2114666]
[1739323954275,0.2084512,95961.0,95953.0,0.2144666]
[1739323954974,0.2084512,95961.0,95956.0,0.001]
[1739323955174,0.01859091,95962.0,95956.0,0.001]
[1739323955374,0.2084534,95960.0,95956.0,0.003]
[1739323955785,0.07044,95963.0,95956.0,0.003]
[1739323955984,0.07044,95963.0,95958.0,0.2084563]
[1739323956282,0.07044,95963.0,95957.0,0.0622]
[1739323956485,0.07044,95963.0,95959.0,0.2084535]
[1739323956678,0.07044,95963.0,95961.0,0.2084493]
[1739323956874,0.08845556,95963.0,95961.0,0.2084493]
[1739323957384,0.08945556,95963.0,95961.0,0.2084493]
[1739323957987,0.08845556,95963.0,95961.0,0.2084493]
[1739323958189,0.09145556,95963.0,95961.0,0.2084493]
[1739323958582,0.02101556,95963.0,95961.0,0.2084493]
[1739323959790,0.02101556,95963.0,95962.0,0.3608]
[1739323961691,0.02201556,95963.0,95962.0,0.3618]
[1739323966597,0.004,95963.0,95962.0,0.43216]
[1739323966788,0.00015632,95982.0,95981.0,0.2084065]
[1739323967990,0.01515632,95982.0,95981.0,0.2094065]
[1739323968386,0.01815632,95982.0,95981.0,0.2094065]
[1739323969402,0.00015632,95982.0,95981.0,0.2084065]
[1739323969604,0.01615632,95982.0,95981.0,0.2094065]
[1739323970000,0.01615632,95982.0,95981.0,0.001]
[1739323970195,0.00315632,95982.0,95978.0,0.0625]
[1739323970402,0.01315632,95982.0,95981.0,0.001]
[1739323972196,0.01315632,95982.0,95980.0,0.2084068]
[1739323972197,0.00315632,95982.0,95980.0,0.2084068]
[1739323972397,0.01215632,95982.0,95980.0,0.2084068]
[1739323973104,0.011,95982.0,95981.0,0.001]
[1739323973796,0.011,95982.0,95980.0,0.2094068]
[1739323974703,0.014,95982.0,95980.0,0.2094068]
[1739323975503,0.003,95982.0,95980.0,0.2084068]
[1739323975803,0.014,95982.0,95981.0,0.001]
[1739323976399,0.013,95982.0,95980.0,0.001]
[1739323977206,0.2224056,95982.0,95981.0,0.001]
[1739323977599,0.2194056,95982.0,95981.0,0.001]
[1739323977906,0.014,95982.0,95981.0,0.001]
[1739323979108,0.013,95982.0,95980.0,0.2094083]
[1739323979493,0.003,95982.0,95981.0,0.001]
[1739323979699,0.014,95982.0,95981.0,0.001]
[1739323980411,0.013,95982.0,95980.0,0.2094083]
[1739323981903,0.013,95982.0,95981.0,0.0307]
[1739323982505,0.014,95982.0,95981.0,0.0639]
[1739323988212,0.014,95982.0,95981.0,0.4247]
[1739323988411,0.00015632,95991.0,95990.0,0.208387]
[1739323988617,0.12520799,96020.0,95990.0,0.43112]
[1739323988912,0.12520799,96020.0,96018.0,0.2083248]
[1739323989108,0.80398,96028.0,96014.0,0.3608]
[1739323989308,0.79398475,96028.0,96023.0,0.208315]
[1739323990204,0.79398475,96028.0,96016.0,0.20848662]
[1739323990411,0.2083142,96024.0,96016.0,0.00015622]
[1739323991726,0.002,96024.0,96016.0,0.00015622]
[1739323992916,0.3608,96019.0,96016.0,0.00015622]
[1739323993216,0.2083183,96022.0,96016.0,0.00015622]
[1739323993623,0.3608,96020.0,96016.0,0.00015622]
[1739323993921,0.5691183,96022.0,96016.0,0.00015622]
[1739323994323,0.5721183,96022.0,96016.0,0.00015622]
[1739323994619,0.003,96022.0,96021.0,0.2083197]
[1739323995007,0.004,96024.0,96016.0,0.00015622]
[1739323995618,0.79454476,96028.0,96016.0,0.00015622]
[1739323995817,0.008,96019.0,96016.0,0.00115622]
[1739323996018,0.008,96019.0,96017.0,0.208327]
[1739323996411,0.79398475,96028.0,96016.0,0.00015622]
[1739323996607,0.008,96024.0,96022.0,0.3608]
[1739323996812,0.008,96024.0,96023.0,0.2083154]
[1739323997214,0.79454476,96028.0,96026.0,0.2083082]
[1739323997412,0.79398475,96028.0,96026.0,0.2083082]
[1739323997611,0.48600799,96050.0,96034.0,0.2082916]
[1739323997810,0.07048,96049.0,96034.0,0.2082916]
[1739323998015,0.12520799,96044.0,96032.0,0.3608]
[1739323998213,0.2082751,96042.0,96032.0,0.3608]
[1739323998908,0.02360722,96035.0,96032.0,0.3608]
[1739323999309,0.02360722,96035.0,96030.0,0.208299]
[1739324000120,0.03260722,96035.0,96032.0,0.001]
[1739324000318,0.03960722,96035.0,96032.0,0.002]
[1739324000713,0.03960722,96035.0,96027.0,0.0628]
[1739324000714,0.02660722,96035.0,96027.0,0.0628]
[1739324001309,0.03060722,96035.0,96027.0,0.0628]
[1739324001722,0.03060722,96035.0,96025.0,0.07036]
[1739324002626,0.03060722,96035.0,96024.0,0.2083115]
[1739324002821,0.2082924,96034.0,96024.0,0.2083115]
[1739324003926,0.2082924,96034.0,96024.0,0.2093115]
[1739324004223,0.2112924,96034.0,96024.0,0.2093115]
[1739324005325,0.3608,96032.0,96024.0,0.2093115]
[1739324005520,0.3608,96032.0,96024.0,0.2083115]
[1739324005727,0.3608,96032.0,96024.0,0.2093115]
[1739324006020,0.3608,96032.0,96024.0,0.001]
[1739324006227,0.3608,96032.0,96025.0,0.2083094]
[1739324006429,0.3708,96032.0,96025.0,0.2083094]